fUST/lending_fUST_20250531
["ID","MTS","AMOUNT","RATE_DAILY","PERIOD"]
[363243279,1748643044616,-229.090148,0.00018356,2]
[363243280,1748643044625,-781.019301,0.00018356,2]
[363243281,1748643044635,-781.019301,0.00018356,2]
[363243282,1748643044645,-430.0,0.00018356,2]
[363243283,1748643044655,-430.0,0.00018356,2]
[363243284,1748643044665,-153.830586,0.00018356,2]
[363243285,1748643044675,-153.830586,0.00018356,2]
[363243286,1748643044685,-430.0,0.00018356,2]
[363243287,1748643044694,-1093.76,0.00018356,2]
[363243288,1748643044704,-1101.08,0.00018356,2]
[363243289,1748643044715,-430.0,0.00018356,2]
[363243290,1748643044724,-430.0,0.00018356,2]
[363243291,1748643044734,-1874.97,0.00018356,2]
[363243292,1748643044744,-2403.46,0.00018356,2]
[363243293,1748643044754,-939.921018,0.00018356,2]
[363243294,1748643044763,-1651.37,0.00018356,2]
[363243296,1748643044772,-151.0,0.00018356,2]
[363243297,1748643044782,-672.44,0.00018356,2]
[363243298,1748643044791,-939.921018,0.00018356,2]
[363243299,1748643044801,-876.04,0.00018356,2]
[363243300,1748643044811,-1717.3,0.00018356,2]
[363243301,1748643044820,-430.0,0.00018356,2]
[363243302,1748643044830,-457.02,0.00018356,2]
[363243303,1748643044840,-430.0,0.00018356,2]
[363243304,1748643044850,-452.05,0.00018356,2]
[363243305,1748643044859,-476.36,0.00018356,2]
[363243306,1748643044869,-430.0,0.00018356,2]
[363243307,1748643044878,-539.59,0.00018356,2]
[363243308,1748643044889,-430.0,0.00018356,2]
[363243309,1748643044899,-2715.81,0.00018356,2]
[363243310,1748643044909,-581.04,0.00018356,2]
[363243311,1748643044919,-567.69,0.00018356,2]
[363243312,1748643044929,-518.63,0.00018356,2]
[363243313,1748643044938,-2250.61,0.00018356,2]
[363243314,1748643044947,-1207.03,0.00018356,2]
[363243315,1748643044958,-430.0,0.00018356,2]
[363243316,1748643044967,-1352.3,0.00018356,2]
[363243317,1748643044977,-2101.95,0.00018356,2]
[363243318,1748643044987,-430.0,0.00018356,2]
[363243319,1748643044996,-576.12,0.00018356,2]
[363243320,1748643045006,-1216.92,0.00018356,2]
[363243321,1748643045016,-808.96,0.00018356,2]
[363243322,1748643045025,-1374.92,0.00018356,2]
[363243323,1748643045035,-1048.82,0.00018356,2]
[363243324,1748643045046,-430.0,0.00018356,2]
[363243325,1748643045056,-738.52,0.00018356,2]
[363243326,1748643045065,-430.0,0.00018356,2]
[363243327,1748643045075,-430.0,0.00018356,2]
[363243328,1748643045084,-6841.01046424,0.00018383,2]
[363243329,1748643045095,-206.848488,0.00018395,2]
[363243330,1748643045105,-206.848488,0.00018395,2]
[363243331,1748643045115,-500.0,0.00018395,2]
[363243332,1748643045128,-500.0,0.00018395,2]
[363243333,1748643045139,-2387.658062,0.00018424,2]
[363243334,1748643045150,-654.28242853,0.00018425,2]
[363243335,1748643045159,-3000.0,0.00018487,2]
[363243336,1748643045170,-151.0,0.00018487,2]
[363243337,1748643045180,-151.0,0.00018487,2]
[363243338,1748643045190,-151.0,0.000185,2]
[363243339,1748643045200,-215.0738,0.00018525,2]
[363243340,1748643045210,-823.0,0.00018595,2]
[363243341,1748643045219,-2000.0,0.00018596,2]
[363243342,1748643045228,-587.0,0.00018627,2]
[363243343,1748643045238,-868.868734,0.0001863,2]
[363243344,1748643045247,-868.868734,0.0001863,2]
[363243345,1748643045256,-2727.150496,0.0001863,2]
[363243346,1748643045266,-2727.150496,0.0001863,2]
[363243347,1748643045278,-151.0,0.0001863,2]
[363243348,1748643045287,-151.0,0.0001863,2]
[363243349,1748643045296,-1025.903396,0.0001863,2]
[363243350,1748643045306,-1025.903396,0.0001863,2]
[363243351,1748643045316,-151.0,0.0001863,2]
[363243352,1748643045326,-229.090148,0.0001863,2]
[363243353,1748643045336,-229.090148,0.0001863,2]
[363243354,1748643045346,-200.292734,0.0001863,2]
[363243355,1748643045356,-200.292734,0.0001863,2]
[363243356,1748643045365,-430.0,0.0001863,2]
[363243357,1748643045375,-513.14677822,0.0001863,2]
[363243358,1748643045386,-151.0,0.0001863,2]
[363243359,1748643045396,-151.0,0.0001863,2]
[363243360,1748643045405,-430.0,0.0001863,2]
[363243361,1748643045415,-151.0,0.0001863,2]
[363243362,1748643045424,-1093.76,0.0001863,2]
[363243363,1748643045433,-151.0,0.0001863,2]
[363243364,1748643045442,-1101.08,0.0001863,2]
[363243365,1748643045452,-430.0,0.0001863,2]
[363243366,1748643045461,-430.0,0.0001863,2]
[363243367,1748643045471,-1874.97,0.0001863,2]
[363243368,1748643045480,-2403.46,0.0001863,2]
[363243369,1748643045490,-1651.37,0.0001863,2]
[363243370,1748643045500,-672.44,0.0001863,2]
[363243371,1748643045509,-876.04,0.0001863,2]
[363243372,1748643045519,-1717.3,0.0001863,2]
[363243373,1748643045528,-430.0,0.0001863,2]
[363243374,1748643045537,-457.02,0.0001863,2]
[363243375,1748643045547,-430.0,0.0001863,2]
[363243376,1748643045556,-452.05,0.0001863,2]
[363243377,1748643045567,-476.36,0.0001863,2]
[363243378,1748643045576,-430.0,0.0001863,2]
[363243379,1748643045586,-539.59,0.0001863,2]
[363243380,1748643045595,-430.0,0.0001863,2]
[363243381,1748643045605,-2715.81,0.0001863,2]
[363243382,1748643045614,-581.04,0.0001863,2]
[363243383,1748643045623,-213.683142,0.0001863,2]
[363243384,1748643045633,-213.683142,0.0001863,2]
[363243385,1748643045645,-567.69,0.0001863,2]
[363243386,1748643045654,-518.63,0.0001863,2]
[363243387,1748643045664,-2250.61,0.0001863,2]
[363243388,1748643045673,-1207.03,0.0001863,2]
[363243389,1748643045682,-430.0,0.0001863,2]
[363243390,1748643045692,-1352.3,0.0001863,2]
[363243391,1748643045702,-2101.95,0.0001863,2]
[363243393,1748643045831,-430.0,0.0001863,2]
[363243394,1748643045840,-576.12,0.0001863,2]
[363243395,1748643045850,-1216.92,0.0001863,2]
[363243396,1748643045859,-808.96,0.0001863,2]
[363243397,1748643045869,-1374.92,0.0001863,2]
[363243398,1748643045884,-1048.82,0.0001863,2]
[363243399,1748643045902,-430.0,0.0001863,2]
[363243400,1748643045915,-738.52,0.0001863,2]
[363243401,1748643045925,-430.0,0.0001863,2]
[363243402,1748643045934,-430.0,0.0001863,2]
[363243403,1748643045944,-500.0,0.00018682,2]
[363243404,1748643045954,-2678.415307,0.00018693,2]
[363243405,1748643045963,-2678.415307,0.00018693,2]
[363243406,1748643045972,-361.610647,0.00018693,2]
[363243407,1748643045982,-361.610647,0.00018693,2]
[363243408,1748643045991,-781.019301,0.00018693,2]
[363243409,1748643046000,-781.019301,0.00018693,2]
[363243410,1748643046009,-6841.01046424,0.00018693,2]
[363243411,1748643046019,-250.0,0.00018693,2]
[363243412,1748643046031,-2917.87919417,0.00018699,2]
[363243413,1748643046044,-151.0,0.000187,2]
[363243414,1748643046054,-637.0,0.000187,2]
[363243415,1748643046063,-151.658,0.00018712,2]
[363243416,1748643046073,-250.0,0.00018712,2]
[363243417,1748643046083,-235.232,0.00018712,2]
[363243418,1748643046092,-639.511507,0.00018715,2]
[363243419,1748643046102,-353.870505,0.00018715,2]
[363243420,1748643046111,-353.870505,0.00018715,2]
[363243421,1748643046125,-2000.0,0.00018725,2]
[363243422,1748643046135,-600.0,0.0001874,2]
[363243423,1748643046144,-868.868734,0.00018799,2]
[363243424,1748643046154,-868.868734,0.00018799,2]
[363243425,1748643046164,-361.610647,0.00018799,2]
[363243426,1748643046173,-361.610647,0.00018799,2]
[363243427,1748643046182,-2727.150496,0.00018799,2]
[363243428,1748643046192,-2727.150496,0.00018799,2]
[363243429,1748643046202,-151.0,0.00018799,2]
[363243430,1748643046211,-151.0,0.00018799,2]
[363243431,1748643046221,-1025.903396,0.00018799,2]
[363243432,1748643046230,-1025.903396,0.00018799,2]
[363243433,1748643046239,-151.0,0.00018799,2]
[363243434,1748643046248,-229.090148,0.00018799,2]
[363243435,1748643046258,-229.090148,0.00018799,2]
[363243436,1748643046267,-781.019301,0.00018799,2]
[363243437,1748643046276,-781.019301,0.00018799,2]
[363243438,1748643046286,-5000.0,0.000188,2]
[363243439,1748643046296,-43780.08917255,0.000188,2]
[363243440,1748643046433,-996.75657525,0.000188,2]
[363243444,1748643047374,-0.00550635,0.00016274,2]
[363243450,1748643047425,-4999.99449365,0.00016274,2]
[363243452,1748643047435,-430.0,0.00016438,2]
[363243454,1748643047444,-453.56313406,0.00016438,2]
[363243456,1748643047453,-430.0,0.00016438,2]
[363243458,1748643047462,-430.0,0.00016438,2]
[363243460,1748643047471,-222.3,0.00016712,2]
[363243462,1748643047480,-430.0,0.0001726,2]
[363243464,1748643047489,-430.0,0.00017534,2]
[363243466,1748643047498,-430.0,0.00017808,2]
[363243468,1748643047508,-430.0,0.00018082,2]
[363243470,1748643047517,-430.0,0.00018356,2]
[363243472,1748643047527,-1630.31,0.00018356,2]
[363243474,1748643047536,-430.0,0.0001863,2]
[363243475,1748643047545,-7809.77570883,0.000188,2]
[363243722,1748643108887,977.08933102,0.00014047,2]
[363244243,1748643898954,347.538082,0.00013699,2]
[363244253,1748644118157,302.0,0.0002,120]
[363244347,1748644232991,-1073.2,0.00014297,2]
[363244348,1748644233002,-2206.42418607,0.00014297,2]
[363244349,1748644233018,-1720.37581393,0.00014297,2]
[363244350,1748644233027,-164.90024098,0.00014441,2]
[363244351,1748644233036,-300.0,0.0001454,2]
[363244352,1748644233045,-300.0,0.0001454,2]
[363244353,1748644233054,-1200.0,0.0001454,2]
[363244354,1748644233063,-500.0,0.00014541,2]
[363244355,1748644233073,-500.0,0.00014541,2]
[363244356,1748644233082,-500.0,0.00014541,2]
[363244357,1748644233091,-500.0,0.00014541,2]
[363244358,1748644233100,-500.0,0.00014541,2]
[363244374,1748644233282,-582.65372841,0.00014541,2]
[363244376,1748644233292,-500.0,0.00014541,2]
[363244378,1748644233302,-500.0,0.00014541,2]
[363244380,1748644233312,-372.53218564,0.00014541,2]
[363244382,1748644233322,-408.08347866,0.00014541,2]
[363244384,1748644233331,-500.0,0.00014541,2]
[363244386,1748644233340,-500.0,0.00014541,2]
[363244388,1748644233350,-500.0,0.00014541,2]
[363244390,1748644233361,-500.0,0.00014541,2]
[363244392,1748644233371,-500.0,0.00014541,2]
[363244394,1748644233380,-500.0,0.00014541,2]
[363244396,1748644233390,-500.0,0.00014541,2]
[363244398,1748644233400,-500.0,0.00014541,2]
[363244400,1748644233411,-500.0,0.00014541,2]
[363244402,1748644233421,-500.0,0.00014541,2]
[363244404,1748644233430,-500.0,0.00014541,2]
[363244406,1748644233440,-500.0,0.00014541,2]
[363244408,1748644233450,-263.90947084,0.00014541,2]
[363244410,1748644233459,-383.81317076,0.00014541,2]
[363244412,1748644233469,-500.0,0.00014541,2]
[363244414,1748644233479,-500.0,0.00014541,2]
[363244416,1748644233488,-500.0,0.00014541,2]
[363244418,1748644233502,-500.0,0.00014541,2]
[363244420,1748644233512,-500.0,0.00014541,2]
[363244422,1748644233522,-500.0,0.00014541,2]
[363244424,1748644233532,-500.0,0.00014541,2]
[363244426,1748644233542,-500.0,0.00014541,2]
[363244428,1748644233552,-500.0,0.00014541,2]
[363244430,1748644233561,-500.0,0.00014541,2]
[363244432,1748644233572,-500.0,0.00014541,2]
[363244434,1748644233581,-500.0,0.00014541,2]
[363244436,1748644233591,-500.0,0.00014541,2]
[363244437,1748644233600,-500.0,0.00014541,2]
[363244440,1748644233610,-500.0,0.00014541,2]
[363244442,1748644233619,-234.78693984,0.00014541,2]
[363244444,1748644233628,-500.0,0.00014541,2]
[363244445,1748644233637,-24900.0,0.00014542,2]
[363244448,1748644233647,-272.74728177,0.00014854,2]
[363244450,1748644233657,-300.0,0.00014954,2]
[363244452,1748644233667,-4810.7919444,0.00014955,2]
[363244454,1748644233677,-500.0,0.00014955,2]
[363244455,1748644233686,-300.249179,0.00014955,2]
[363244458,1748644233696,-884.416712,0.00015053,2]
[363244460,1748644233706,-500.0,0.00015229,2]
[363244461,1748644233715,-3000.0,0.00015876,2]
[363244464,1748644233724,-500.0,0.00015909,2]
[363244466,1748644233733,-420.0,0.00015921,2]
[363244468,1748644233743,-152.0,0.00015943,2]
[363244469,1748644233752,-1200.0,0.00015994,2]
[363244471,1748644233762,-272.74728175,0.00016126,2]
[363244473,1748644233771,-2482.93651241,0.00016338,2]
[363244475,1748644233780,-420.0,0.00016367,2]
[363244477,1748644233790,-430.0,0.00016438,2]
[363244479,1748644233799,-430.0,0.00016438,2]
[363244481,1748644233808,-430.0,0.00016438,2]
[363244483,1748644233818,-430.0,0.00016438,2]
[363244485,1748644233827,-430.0,0.00016438,2]
[363244487,1748644233837,-430.0,0.00016438,2]
[363244489,1748644233847,-430.0,0.00016438,2]
[363244491,1748644233857,-430.0,0.00016438,2]
[363244494,1748644233867,-432.75783393,0.00016438,2]
[363244495,1748644233877,-430.0,0.00016438,2]
[363244498,1748644233887,-430.0,0.00016438,2]
[363244500,1748644233896,-430.0,0.00016438,2]
[363244501,1748644233906,-430.0,0.00016438,2]
[363244504,1748644233917,-430.0,0.00016438,2]
[363244505,1748644233927,-430.0,0.00016438,2]
[363244507,1748644233937,-430.0,0.00016438,2]
[363244510,1748644233947,-430.0,0.00016438,2]
[363244512,1748644233957,-430.0,0.00016438,2]
[363244514,1748644233967,-430.0,0.00016438,2]
[363244515,1748644233977,-430.0,0.00016438,2]
[363244517,1748644233986,-430.0,0.00016438,2]
[363244519,1748644233998,-450.0,0.00016438,2]
[363244521,1748644234007,-430.0,0.00016438,2]
[363244523,1748644234016,-430.0,0.00016438,2]
[363244525,1748644234026,-430.0,0.00016438,2]
[363244527,1748644234035,-430.0,0.00016438,2]
[363244529,1748644234044,-430.0,0.00016438,2]
[363244531,1748644234053,-430.0,0.00016438,2]
[363244533,1748644234062,-430.0,0.00016438,2]
[363244535,1748644234072,-430.0,0.00016438,2]
[363244537,1748644234082,-430.0,0.00016438,2]
[363244539,1748644234091,-430.0,0.00016438,2]
[363244541,1748644234101,-430.0,0.00016438,2]
[363244543,1748644234111,-430.0,0.00016438,2]
[363244545,1748644234121,-310.0,0.00016438,2]
[363244547,1748644234131,-430.0,0.00016438,2]
[363244549,1748644234140,-430.0,0.00016438,2]
[363244551,1748644234150,-430.0,0.00016438,2]
[363244553,1748644234159,-401.29086827,0.00016438,2]
[363244555,1748644234169,-430.0,0.00016438,2]
[363244557,1748644234179,-403.12846371,0.00016438,2]
[363244559,1748644234188,-430.0,0.00016438,2]
[363244561,1748644234198,-270.0,0.00016438,2]
[363244563,1748644234207,-402.03221623,0.00016438,2]
[363244565,1748644234217,-430.0,0.00016438,2]
[363244567,1748644234226,-430.0,0.00016438,2]
[363244569,1748644234236,-430.0,0.00016438,2]
[363244571,1748644234245,-430.0,0.00016438,2]
[363244573,1748644234255,-430.0,0.00016438,2]
[363244575,1748644234265,-155.16922581,0.00016438,2]
[363244577,1748644234274,-500.0,0.00016438,2]
[363244579,1748644234284,-430.0,0.00016438,2]
[363244581,1748644234294,-430.0,0.00016438,2]
[363244583,1748644234303,-430.0,0.00016438,2]
[363244585,1748644234313,-430.0,0.00016438,2]
[363244587,1748644234323,-430.0,0.00016438,2]
[363244589,1748644234333,-430.0,0.00016438,2]
[363244591,1748644234342,-430.0,0.00016438,2]
[363244593,1748644234352,-430.0,0.00016438,2]
[363244595,1748644234361,-430.0,0.00016438,2]
[363244597,1748644234371,-430.0,0.00016438,2]
[363244599,1748644234381,-430.0,0.00016438,2]
[363244601,1748644234390,-430.0,0.00016438,2]
[363244602,1748644234399,-430.0,0.00016438,2]
[363244603,1748644234408,-430.0,0.00016438,2]
[363244604,1748644234419,-430.0,0.00016438,2]
[363244605,1748644234429,-430.0,0.00016438,2]
[363244606,1748644234439,-430.0,0.00016438,2]
[363244607,1748644234449,-430.0,0.00016438,2]
[363244608,1748644234459,-430.0,0.00016438,2]
[363244609,1748644234469,-370.0,0.00016438,2]
[363244610,1748644234478,-450.0,0.00016438,2]
[363244611,1748644234487,-430.0,0.00016438,2]
[363244612,1748644234498,-430.0,0.00016438,2]
[363244613,1748644234509,-430.0,0.00016438,2]
[363244614,1748644234518,-430.0,0.00016438,2]
[363244615,1748644234529,-430.0,0.00016438,2]
[363244616,1748644234539,-430.0,0.00016438,2]
[363244617,1748644234548,-430.0,0.00016438,2]
[363244618,1748644234558,-430.0,0.00016438,2]
[363244619,1748644234567,-430.0,0.00016438,2]
[363244620,1748644234576,-430.0,0.00016438,2]
[363244621,1748644234587,-430.0,0.00016438,2]
[363244622,1748644234596,-309.59053848,0.00016438,2]
[363244623,1748644234606,-430.0,0.00016438,2]
[363244624,1748644234615,-430.0,0.00016438,2]
[363244625,1748644234625,-361.33,0.00016438,2]
[363244626,1748644234636,-430.0,0.00016438,2]
[363244627,1748644234645,-558.79518031,0.00016438,2]
[363244628,1748644234654,-430.0,0.00016438,2]
[363244629,1748644234665,-430.0,0.00016438,2]
[363244630,1748644234675,-430.0,0.00016438,2]
[363244631,1748644234685,-430.0,0.00016438,2]
[363244632,1748644234695,-430.0,0.00016438,2]
[363244633,1748644234704,-430.0,0.00016438,2]
[363244634,1748644234713,-430.0,0.00016438,2]
[363244635,1748644234723,-430.0,0.00016438,2]
[363244636,1748644234732,-430.0,0.00016438,2]
[363244637,1748644234741,-430.0,0.00016438,2]
[363244638,1748644234751,-430.0,0.00016438,2]
[363244639,1748644234760,-430.0,0.00016438,2]
[363244640,1748644234770,-162.57988257,0.00016438,2]
[363244641,1748644234779,-150.84763182,0.00016438,2]
[363244642,1748644234788,-430.0,0.00016438,2]
[363244643,1748644234798,-430.0,0.00016438,2]
[363244644,1748644234807,-430.0,0.00016438,2]
[363244645,1748644234816,-430.0,0.00016438,2]
[363244646,1748644234826,-430.0,0.00016438,2]
[363244647,1748644234835,-491.65410181,0.00016438,2]
[363244648,1748644234845,-430.0,0.00016438,2]
[363244649,1748644234855,-235.66839008,0.00016438,2]
[363244650,1748644234864,-470.69978332,0.00016438,2]
[363244651,1748644234874,-430.0,0.00016438,2]
[363244652,1748644234883,-430.0,0.00016438,2]
[363244653,1748644234893,-430.0,0.00016438,2]
[363244654,1748644234902,-430.0,0.00016438,2]
[363244655,1748644234912,-430.0,0.00016438,2]
[363244656,1748644234921,-430.0,0.00016438,2]
[363244657,1748644234931,-430.0,0.00016438,2]
[363244658,1748644234940,-430.0,0.00016438,2]
[363244659,1748644234951,-430.0,0.00016438,2]
[363244660,1748644234960,-430.0,0.00016438,2]
[363244661,1748644234970,-430.0,0.00016438,2]
[363244662,1748644234979,-430.0,0.00016438,2]
[363244663,1748644234989,-430.0,0.00016438,2]
[363244664,1748644234998,-202.30790771,0.00016438,2]
[363244665,1748644235007,-450.0,0.00016438,2]
[363244666,1748644235017,-500.0,0.00016438,2]
[363244667,1748644235026,-430.0,0.00016438,2]
[363244668,1748644235036,-430.0,0.00016438,2]
[363244669,1748644235046,-430.0,0.00016438,2]
[363244670,1748644235056,-430.0,0.00016438,2]
[363244671,1748644235066,-430.0,0.00016438,2]
[363244672,1748644235075,-430.0,0.00016438,2]
[363244673,1748644235085,-342.87558834,0.00016438,2]
[363244674,1748644235094,-430.0,0.00016438,2]
[363244675,1748644235103,-430.0,0.00016438,2]
[363244676,1748644235113,-430.0,0.00016438,2]
[363244677,1748644235122,-430.0,0.00016438,2]
[363244678,1748644235131,-430.0,0.00016438,2]
[363244679,1748644235141,-430.0,0.00016438,2]
[363244680,1748644235151,-233.67553299,0.00016438,2]
[363244681,1748644235160,-430.0,0.00016438,2]
[363244682,1748644235171,-430.0,0.00016438,2]
[363244683,1748644235181,-370.0,0.00016438,2]
[363244684,1748644235191,-430.0,0.00016438,2]
[363244685,1748644235200,-430.0,0.00016438,2]
[363244686,1748644235209,-500.0,0.00016438,2]
[363244687,1748644235218,-365.28637384,0.00016438,2]
[363244688,1748644235228,-430.0,0.00016438,2]
[363244689,1748644235237,-430.0,0.00016438,2]
[363244690,1748644235246,-430.0,0.00016438,2]
[363244691,1748644235255,-430.0,0.00016438,2]
[363244692,1748644235265,-430.0,0.00016438,2]
[363244693,1748644235274,-430.0,0.00016438,2]
[363244694,1748644235283,-497.25395175,0.00016438,2]
[363244695,1748644235292,-360.0,0.00016438,2]
[363244696,1748644235301,-442.02,0.00016438,2]
[363244697,1748644235311,-430.0,0.00016438,2]
[363244698,1748644235320,-508.17513862,0.00016438,2]
[363244699,1748644235329,-393.12367121,0.00016438,2]
[363244700,1748644235339,-430.0,0.00016438,2]
[363244701,1748644235348,-430.0,0.00016438,2]
[363244702,1748644235357,-430.0,0.00016438,2]
[363244703,1748644235366,-430.0,0.00016438,2]
[363244704,1748644235375,-430.0,0.00016438,2]
[363244705,1748644235384,-463.16230889,0.00016438,2]
[363244706,1748644235393,-430.0,0.00016438,2]
[363244707,1748644235402,-430.0,0.00016438,2]
[363244708,1748644235413,-430.0,0.00016438,2]
[363244709,1748644235422,-430.0,0.00016438,2]
[363244710,1748644235432,-332.20519914,0.00016438,2]
[363244711,1748644235441,-1010.82162872,0.00016438,2]
[363244712,1748644235450,-430.0,0.00016438,2]
[363244713,1748644235459,-430.0,0.00016438,2]
[363244714,1748644235468,-430.0,0.00016438,2]
[363244715,1748644235477,-430.0,0.00016438,2]
[363244716,1748644235487,-430.0,0.00016438,2]
[363244717,1748644235496,-430.0,0.00016438,2]
[363244718,1748644235505,-430.0,0.00016438,2]
[363244719,1748644235518,-430.0,0.00016438,2]
[363244720,1748644235527,-430.0,0.00016438,2]
[363244721,1748644235536,-200.58955863,0.00016438,2]
[363244722,1748644235545,-400.0,0.00016438,2]
[363244723,1748644235555,-430.0,0.00016438,2]
[363244724,1748644235564,-1019.46,0.00016438,2]
[363244725,1748644235573,-470.0,0.00016438,2]
[363244726,1748644235583,-516.59345434,0.00016438,2]
[363244727,1748644235592,-430.0,0.00016438,2]
[363244728,1748644235602,-430.0,0.00016438,2]
[363244729,1748644235611,-430.0,0.00016438,2]
[363244730,1748644235620,-430.0,0.00016438,2]
[363244731,1748644235630,-430.0,0.00016438,2]
[363244732,1748644235639,-430.0,0.00016438,2]
[363244733,1748644235648,-451.95650242,0.00016438,2]
[363244734,1748644235657,-430.0,0.00016438,2]
[363244735,1748644235668,-430.0,0.00016438,2]
[363244736,1748644235677,-430.0,0.00016438,2]
[363244737,1748644235686,-430.0,0.00016438,2]
[363244738,1748644235695,-430.0,0.00016438,2]
[363244739,1748644235704,-430.0,0.00016438,2]
[363244740,1748644235713,-1380.24,0.00016438,2]
[363244741,1748644235722,-430.0,0.00016438,2]
[363244742,1748644235731,-430.0,0.00016438,2]
[363244743,1748644235739,-430.0,0.00016438,2]
[363244744,1748644235748,-537.00628484,0.00016438,2]
[363244745,1748644235757,-430.0,0.00016438,2]
[363244746,1748644235767,-430.0,0.00016438,2]
[363244747,1748644235776,-430.0,0.00016438,2]
[363244748,1748644235786,-430.0,0.00016438,2]
[363244749,1748644235795,-430.0,0.00016438,2]
[363244750,1748644235804,-430.0,0.00016438,2]
[363244751,1748644235813,-430.0,0.00016438,2]
[363244752,1748644235823,-1050.1,0.00016438,2]
[363244753,1748644235833,-430.0,0.00016438,2]
[363244754,1748644235843,-430.0,0.00016438,2]
[363244755,1748644235853,-430.0,0.00016438,2]
[363244756,1748644235863,-430.0,0.00016438,2]
[363244757,1748644235872,-430.0,0.00016438,2]
[363244758,1748644235884,-430.0,0.00016438,2]
[363244759,1748644235893,-430.0,0.00016438,2]
[363244760,1748644235903,-430.0,0.00016438,2]
[363244761,1748644235913,-430.0,0.00016438,2]
[363244762,1748644235922,-1471.41,0.00016438,2]
[363244763,1748644235931,-432.04773482,0.00016438,2]
[363244764,1748644235940,-430.0,0.00016438,2]
[363244765,1748644235949,-500.0,0.00016438,2]
[363244766,1748644235959,-500.0,0.00016438,2]
[363244767,1748644235968,-500.0,0.00016438,2]
[363244768,1748644235978,-500.0,0.00016438,2]
[363244769,1748644235987,-430.0,0.00016438,2]
[363244770,1748644235996,-500.0,0.00016438,2]
[363244771,1748644236006,-500.0,0.00016438,2]
[363244772,1748644236015,-430.0,0.00016438,2]
[363244773,1748644236025,-633.35,0.00016438,2]
[363244774,1748644236035,-430.0,0.00016438,2]
[363244775,1748644236045,-351.6233795,0.00016438,2]
[363244776,1748644236055,-430.0,0.00016438,2]
[363244777,1748644236075,-430.0,0.00016438,2]
[363244778,1748644236085,-430.0,0.00016438,2]
[363244779,1748644236095,-160.66630013,0.00016438,2]
[363244780,1748644236104,-430.0,0.00016438,2]
[363244781,1748644236114,-1515.85,0.00016438,2]
[363244782,1748644236124,-430.0,0.00016438,2]
[363244783,1748644236133,-430.0,0.00016438,2]
[363244784,1748644236143,-435.23,0.00016438,2]
[363244785,1748644236153,-450.0,0.00016438,2]
[363244786,1748644236164,-287.30133394,0.00016438,2]
[363244787,1748644236173,-578.28,0.00016438,2]
[363244788,1748644236183,-430.0,0.00016438,2]
[363244789,1748644236193,-430.0,0.00016438,2]
[363244790,1748644236204,-430.0,0.00016438,2]
[363244791,1748644236214,-351.63198507,0.00016438,2]
[363244792,1748644236224,-432.37978503,0.00016438,2]
[363244793,1748644236234,-430.0,0.00016438,2]
[363244794,1748644236243,-430.0,0.00016438,2]
[363244795,1748644236253,-430.0,0.00016438,2]
[363244796,1748644236263,-430.0,0.00016438,2]